bitfinex/quotes_BTCUSD_20250730
["timestamp","ask_amount","ask_price","bid_price","bid_amount"]
[1753899581277,0.36827161,117940.0,117930.0,0.3241473]
[1753899581550,0.36827161,117940.0,117930.0,0.35656203]
[1753899581910,0.36827161,117940.0,117930.0,0.35756203]
[1753899582116,0.38213852,117940.0,117930.0,0.3251473]
[1753899583127,0.35386691,117940.0,117930.0,0.68329132]
[1753899583330,0.34,117940.0,117930.0,0.68329132]
[1753899583509,0.35901845,117940.0,117930.0,0.3251473]
[1753899583712,0.34,117940.0,117930.0,0.3251473]
[1753899586126,0.34,117940.0,117930.0,0.4096246]
[1753899586571,0.34,117940.0,117930.0,0.3251473]
[1753899587986,0.34792518,117940.0,117930.0,0.3251473]
[1753899588183,0.34792448,117940.0,117930.0,0.3251473]
[1753899588540,0.34,117940.0,117930.0,0.3251473]
[1753899589504,0.34132,117940.0,117930.0,0.1912673]
[1753899589712,0.34979831,117940.0,117930.0,0.1860773]
[1753899589913,0.37517248,117940.0,117930.0,0.3198773]
[1753899590137,0.38111631,117940.0,117930.0,0.3198773]
[1753899590294,0.38959476,117940.0,117930.0,0.3229973]
[1753899590497,0.372638,117940.0,117930.0,0.3229973]
[1753899590899,0.372638,117940.0,117930.0,0.3250673]
[1753899591276,0.35744902,117940.0,117930.0,0.35736703]
[1753899592401,0.36537663,117940.0,117930.0,0.35736703]
[1753899592609,0.37385487,117940.0,117930.0,0.3250673]
[1753899592819,0.38112005,117940.0,117930.0,0.3250673]
[1753899593028,0.3895985,117940.0,117930.0,0.3250673]
[1753899593686,0.39807688,117940.0,117930.0,0.3198773]
[1753899594111,0.62643819,117940.0,117930.0,0.1860773]
[1753899594328,0.90967232,117940.0,117930.0,0.003]
[1753899594550,0.9255291,117940.0,117930.0,0.13676]
[1753899594768,0.56738508,117940.0,117930.0,0.13676]
[1753899594985,0.5673877,117940.0,117930.0,0.13676]
[1753899595198,0.5673877,117940.0,117930.0,0.13476]
[1753899595419,0.5673877,117940.0,117930.0,0.13376]
[1753899595850,0.56656036,117940.0,117930.0,0.13376]
[1753899596071,0.39698218,117940.0,117930.0,0.19566]
[1753899596289,0.42241811,117940.0,117930.0,0.23349]
[1753899596503,0.40656075,117940.0,117930.0,0.23349]
[1753899597389,0.5761385,117940.0,117930.0,0.23349]
[1753899597589,0.40656075,117940.0,117930.0,0.23349]
[1753899598002,0.40656061,117940.0,117930.0,0.23349]
[1753899598214,0.41503942,117940.0,117930.0,0.23349]
[1753899598846,0.64365904,117940.0,117930.0,0.19566]
[1753899599057,0.39136642,117930.0,117920.0,0.0663]
[1753899599293,0.7593099,117930.0,117920.0,0.20006]
[1753899599506,0.73387145,117930.0,117920.0,0.20006]
[1753899599724,0.38420696,117930.0,117920.0,0.23789]
[1753899600262,0.62939714,117930.0,117920.0,0.23789]
[1753899600466,0.45980501,117930.0,117920.0,0.23789]
[1753899600684,0.73387145,117930.0,117920.0,0.23789]
[1753899600897,0.92059348,117930.0,117920.0,0.23789]
[1753899601266,0.92059348,117930.0,117920.0,0.10413]
[1753899601267,0.91211438,117930.0,117920.0,0.10413]
[1753899601573,0.91211438,117930.0,117910.0,0.10143]
[1753899601574,0.21249584,117920.0,117910.0,0.10143]
[1753899601696,0.41100372,117920.0,117910.0,0.23519]
[1753899601897,0.50396084,117920.0,117910.0,0.23519]
[1753899602112,0.92909012,117920.0,117910.0,0.23519]
[1753899602318,0.75100336,117920.0,117910.0,0.23519]
[1753899602525,0.92909019,117920.0,117910.0,0.23519]
[1753899602908,0.54533595,117920.0,117910.0,0.19736]
[1753899603321,0.54533595,117920.0,117910.0,0.23519]
[1753899603529,0.46020631,117920.0,117910.0,0.23519]
[1753899603731,0.38420926,117920.0,117910.0,0.23519]
[1753899603944,0.36724869,117920.0,117910.0,0.23519]
[1753899604356,0.38420854,117920.0,117910.0,0.23833]
[1753899604558,0.39268864,117920.0,117910.0,0.23833]
[1753899604995,0.37572851,117920.0,117910.0,0.23833]
[1753899605198,0.38420854,117920.0,117910.0,0.23833]
[1753899605410,0.38420847,117920.0,117910.0,0.23833]
[1753899605619,0.37572851,117920.0,117910.0,0.23833]
[1753899606075,0.39268843,117920.0,117910.0,0.23833]
[1753899606495,0.47716573,117920.0,117910.0,0.23833]
[1753899606937,0.48564641,117920.0,117910.0,0.23833]
[1753899607145,0.46868606,117920.0,117910.0,0.23833]
[1753899607349,0.47716624,117920.0,117910.0,0.23833]
[1753899607533,0.46868606,117920.0,117910.0,0.23833]
[1753899607971,0.48564648,117920.0,117910.0,0.23833]
[1753899608197,0.48564648,117920.0,117910.0,0.23519]
[1753899608423,0.64677317,117920.0,117910.0,0.23519]
[1753899609059,0.64677317,117920.0,117910.0,0.10143]
[1753899609276,0.64677317,117920.0,117910.0,0.23515]
[1753899609927,0.62932415,117920.0,117910.0,0.23515]
[1753899610824,0.35827956,117920.0,117910.0,0.23515]
[1753899611067,0.35827956,117920.0,117910.0,0.23829]
[1753899611538,0.34,117920.0,117910.0,0.24044]
[1753899612000,0.34,117920.0,117910.0,0.3249173]
[1753899612435,0.525497,117940.0,117920.0,0.0327]
[1753899612654,5.5,117940.0,117930.0,0.20167]
[1753899612872,5.0,117940.0,117930.0,0.24264]
[1753899613081,0.51088133,117950.0,117940.0,0.0658]
[1753899613293,0.35102689,117950.0,117940.0,0.10892]
[1753899613529,0.02798214,117950.0,117940.0,0.10892]
[1753899613748,0.41514567,117950.0,117940.0,0.10892]
[1753899613961,0.42362369,117950.0,117940.0,0.10892]
[1753899614174,0.06666772,117950.0,117940.0,0.10677]
[1753899614635,0.00847831,117940.0,117930.0,0.0658]
[1753899614848,0.00847831,117940.0,117930.0,0.23731]
[1753899614849,0.20481206,117940.0,117930.0,0.23731]
[1753899615069,0.63907257,117940.0,117930.0,0.23731]
[1753899615292,0.35695842,117930.0,117920.0,0.10277]
[1753899615526,0.36675759,117930.0,117920.0,0.10277]
[1753899615750,0.89461116,117930.0,117920.0,0.10277]
[1753899615969,0.88613242,117930.0,117920.0,0.23331]
[1753899616205,0.93284442,117930.0,117920.0,0.23331]
[1753899616418,0.92436511,117930.0,117920.0,0.23331]
[1753899617708,0.3965111,117930.0,117920.0,0.23331]
[1753899617924,0.0182787,117930.0,117920.0,0.23331]
[1753899618146,0.0182787,117930.0,117920.0,0.23645]
[1753899618376,0.01695827,117930.0,117920.0,0.2386]
[1753899618814,0.02543758,117930.0,117920.0,0.2386]
[1753899619250,0.02543766,117930.0,117920.0,0.2386]
[1753899619974,0.00847903,117930.0,117920.0,0.2386]
[1753899620181,0.0169582,117930.0,117920.0,0.2386]
[1753899620617,0.3569582,117930.0,117920.0,0.2386]
[1753899621059,0.34,117930.0,117920.0,0.2386]
[1753899621528,0.34,117940.0,117930.0,0.0623]
[1753899621759,0.34,117940.0,117930.0,0.10542]
[1753899622212,0.34847824,117940.0,117930.0,0.10542]
[1753899622686,0.53633297,117940.0,117930.0,0.10542]
[1753899622933,0.54481178,117940.0,117930.0,0.10013]
[1753899623192,0.55329066,117940.0,117930.0,0.10013]
[1753899623428,0.54481242,117940.0,117930.0,0.10327]
[1753899623657,0.36675572,117940.0,117930.0,0.10327]
[1753899623901,0.35827698,117940.0,117930.0,0.10327]
[1753899624143,0.36675572,117940.0,117930.0,0.10542]
[1753899624385,0.35827698,117940.0,117930.0,0.10542]
[1753899624630,0.34979838,117940.0,117930.0,0.10542]
[1753899624868,0.73347268,117940.0,117930.0,0.10542]
[1753899625103,0.73347268,117940.0,117930.0,0.10505139]
[1753899625340,0.73279268,117940.0,117930.0,0.10505139]
[1753899625794,0.74127149,117940.0,117930.0,0.10505139]
[1753899626036,0.73279268,117940.0,117930.0,0.10505139]
[1753899626286,0.74127149,117940.0,117930.0,0.10505139]
[1753899626769,0.72431401,117940.0,117930.0,0.10505139]
[1753899627014,0.73147261,117940.0,117930.0,0.10505139]
[1753899627243,0.72299401,117940.0,117930.0,0.10505139]
[1753899627489,0.02543751,117930.0,117920.0,0.1175373]
[1753899627718,0.04371657,117930.0,117920.0,0.2851773]
[1753899627958,0.04239657,117930.0,117920.0,0.3209973]
[1753899628188,0.03391697,117930.0,117920.0,0.3209973]
[1753899628438,0.04239657,117930.0,117920.0,0.3209973]
[1753899628670,0.63018642,117930.0,117920.0,0.2315]
[1753899628924,0.08407722,117930.0,117920.0,0.23652]
[1753899629163,0.02543759,117930.0,117920.0,0.23652]
[1753899629398,0.20350932,117930.0,117920.0,0.23652]
[1753899630820,0.5702265,117930.0,117920.0,0.23652]
[1753899631291,0.36671718,117930.0,117920.0,0.23652]
[1753899631550,0.62210661,117930.0,117920.0,0.0979]
[1753899631794,0.51809651,117920.0,117910.0,0.23516]
[1753899632030,0.89461379,117920.0,117910.0,0.23516]
[1753899632264,0.89461379,117920.0,117910.0,0.24018]
[1753899632964,0.72499717,117920.0,117910.0,0.24018]
[1753899633198,0.72367674,117920.0,117910.0,0.24018]
[1753899633419,0.35695956,117920.0,117910.0,0.24018]
[1753899633652,0.36543966,117920.0,117910.0,0.24018]
[1753899633873,0.53604668,117920.0,117910.0,0.24018]
[1753899634511,0.37492049,117920.0,117910.0,0.24018]
[1753899634722,0.544527,117920.0,117910.0,0.24018]
[1753899634989,0.36644017,117920.0,117910.0,0.24018]
[1753899635205,0.341,117920.0,117910.0,0.3246573]
[1753899635426,0.341,117920.0,117910.0,0.69137448]
[1753899635427,0.001,117920.0,117910.0,0.69137448]
[1753899636829,0.34,117940.0,117930.0,0.0637]
[1753899637044,0.34847824,117940.0,117930.0,0.23628]
[1753899637272,0.34847824,117940.0,117930.0,0.23924]
[1753899637512,0.34,117940.0,117930.0,0.23924]
[1753899637963,0.34847838,117940.0,117930.0,0.23924]
[1753899638193,0.34947838,117940.0,117930.0,0.23924]
[1753899638422,0.34947838,117940.0,117930.0,0.3237173]
[1753899638423,0.001,117940.0,117930.0,0.3237173]
[1753899638636,0.001,117940.0,117930.0,0.39276075]
[1753899639318,0.341,117940.0,117930.0,0.3237173]
[1753899639980,0.34232,117940.0,117930.0,0.1901973]
[1753899640192,0.90152447,117940.0,117930.0,0.23422]
[1753899640407,0.90152447,117940.0,117930.0,0.0637]
[1753899640648,0.90098214,117940.0,117930.0,0.19722]
[1753899640865,0.74042496,117940.0,117930.0,0.23422]
[1753899641079,0.74890386,117940.0,117930.0,0.23718]
[1753899641305,0.91793988,117940.0,117930.0,0.23924]
[1753899641517,0.90946131,117940.0,117930.0,0.23924]
[1753899641870,0.90946131,117940.0,117930.0,0.23718]
[1753899642287,0.90946131,117940.0,117930.0,0.23422]
[1753899643349,0.90946131,117940.0,117930.0,0.23628]
[1753899643555,0.54142413,117940.0,117930.0,0.23924]
[1753899644010,0.90814131,117940.0,117930.0,0.23924]
[1753899644215,0.90814039,117940.0,117930.0,0.23924]
[1753899644413,0.90273122,117940.0,117930.0,0.23924]
[1753899644610,0.71619556,117940.0,117930.0,0.23924]
[1753899644847,0.341,117940.0,117930.0,0.23924]
[1753899645058,0.341,117940.0,117930.0,0.69043448]
[1753899645295,0.001,117940.0,117930.0,0.69043448]
[1753899646233,0.001,117940.0,117930.0,0.69143448]
[1753899646445,0.35102689,117950.0,117940.0,0.0626]
[1753899646648,0.35102689,117950.0,117940.0,0.10462]
[1753899649052,0.01102689,117950.0,117940.0,0.62686765]
[1753899649270,0.00014556,117950.0,117940.0,0.62474793]
[1753899649712,0.01940771,117950.0,117940.0,0.62474793]
[1753899649924,0.00014556,117950.0,117940.0,0.62474793]
[1753899650177,0.02011762,117950.0,117940.0,0.25803075]
[1753899650366,0.00014556,117950.0,117940.0,0.25803075]
[1753899650663,0.00014556,117950.0,117940.0,0.26003075]
[1753899653024,0.36686274,117950.0,117940.0,0.3244973]
[1753899653241,0.37666033,117950.0,117940.0,0.3244973]
[1753899653449,0.39361579,117950.0,117940.0,0.3254973]
[1753899653661,0.90317959,117950.0,117940.0,0.3254973]
[1753899653874,0.9144689,117950.0,117940.0,0.236]
[1753899654093,0.9989462,117950.0,117940.0,0.199]
[1753899654310,0.9904684,117950.0,117940.0,0.1364]
[1753899654955,0.98184196,117950.0,117940.0,0.1663]
[1753899655066,0.89736466,117950.0,117940.0,0.1663]
[1753899655286,0.3920661,117950.0,117940.0,0.2343]
[1753899655505,0.40054426,117950.0,117940.0,0.2343]
[1753899655717,0.56416002,117950.0,117940.0,0.2343]
[1753899655936,0.54775208,117950.0,117940.0,0.2343]
[1753899656160,0.63222938,117950.0,117940.0,0.2343]
[1753899656597,0.54775208,117950.0,117940.0,0.2343]
[1753899656812,0.54775208,117950.0,117940.0,0.1009]
[1753899657059,0.88888664,117950.0,117940.0,0.13336]
[1753899657952,0.88888664,117950.0,117940.0,0.16466]
[1753899658160,0.5307959,117950.0,117940.0,0.16466]
[1753899658382,0.96388019,117950.0,117940.0,0.16466]
[1753899659023,0.97775613,117950.0,117940.0,0.20141]
[1753899659447,0.97775542,117950.0,117940.0,0.20141]
[1753899659659,0.62814277,117950.0,117940.0,0.20141]
[1753899659900,0.98028698,117950.0,117940.0,0.13336]
[1753899660118,0.34847845,117940.0,117930.0,0.09985]
[1753899660330,0.35695676,117940.0,117930.0,0.23633]
[1753899660547,0.35827676,117940.0,117930.0,0.23633]
[1753899661214,0.34,117940.0,117930.0,0.23833]
[1753899662519,0.34847831,117940.0,117930.0,0.23833]
[1753899662743,0.34,117940.0,117930.0,0.23833]
[1753899664149,0.40613764,117940.0,117930.0,0.23833]
[1753899664394,0.39765904,117940.0,117930.0,0.23633]
[1753899664855,0.34979824,117940.0,117930.0,0.23633]
[1753899665089,0.34132,117940.0,117930.0,0.23833]
[1753899665321,0.34132,117940.0,117930.0,0.23317]
[1753899665594,0.90290316,117940.0,117930.0,0.17007]
[1753899665837,0.89442478,117940.0,117930.0,0.17007]
[1753899666068,0.97890208,117940.0,117930.0,0.20147]
[1753899666300,0.97890208,117940.0,117930.0,0.23267]
[1753899666526,0.97042348,117940.0,117930.0,0.19592]
[1753899666760,0.51807173,117930.0,117920.0,0.10587]
[1753899666994,0.34979939,117930.0,117920.0,0.23919]
[1753899667223,0.3582787,117930.0,117920.0,0.23919]
[1753899667455,0.3752374,117930.0,117920.0,0.23919]
[1753899667700,0.62042758,117930.0,117920.0,0.23607]
[1753899667942,0.62042758,117930.0,117920.0,0.23707]
[1753899668665,0.45083545,117930.0,117920.0,0.23707]
[1753899668907,0.3667578,117930.0,117920.0,0.23707]
[1753899669119,0.35827841,117930.0,117920.0,0.23707]
[1753899669547,0.35827841,117930.0,117920.0,0.24019]
[1753899669761,0.3497991,117930.0,117920.0,0.24019]
[1753899669980,0.35695827,117930.0,117920.0,0.24119]
[1753899670740,0.37523719,117930.0,117920.0,0.23919]
[1753899671118,0.36675766,117930.0,117920.0,0.23919]
[1753899671338,0.54482939,117930.0,117920.0,0.24119]
[1753899671559,0.37523712,117930.0,117920.0,0.24119]
[1753899671776,0.54482975,117930.0,117920.0,0.23919]
[1753899672224,0.62930705,117930.0,117920.0,0.23919]
[1753899672637,0.37523755,117930.0,117920.0,0.23919]
[1753899673471,0.37523755,117930.0,117920.0,0.24119]
[1753899673691,0.54482968,117930.0,117920.0,0.24119]
[1753899673905,0.36675751,117930.0,117920.0,0.24119]
[1753899674126,0.37523682,117930.0,117920.0,0.24119]
[1753899674344,0.36675736,117930.0,117920.0,0.24119]
[1753899674771,0.72503775,117930.0,117920.0,0.24119]
[1753899675186,0.72371775,117930.0,117920.0,0.24119]
[1753899675641,0.73219706,117930.0,117920.0,0.24119]
[1753899676075,0.98758736,117930.0,117920.0,0.23599]
[1753899676296,1.00460305,117930.0,117920.0,0.16999]
[1753899676460,0.51808683,117920.0,117910.0,0.06452]
[1753899676661,0.90312645,117920.0,117910.0,0.23139]
[1753899676836,0.80911792,117920.0,117910.0,0.23139]
[1753899677066,0.97872443,117920.0,117910.0,0.23139]
[1753899677275,0.80063767,117920.0,117910.0,0.23139]
[1753899677653,0.80911785,117920.0,117910.0,0.23451]
[1753899677853,0.8175981,117920.0,117910.0,0.23451]
[1753899678463,0.98720461,117920.0,117910.0,0.23451]
[1753899678718,0.98720461,117920.0,117910.0,0.23651]
[1753899679235,0.43387804,117920.0,117910.0,0.23651]
[1753899679427,0.7321998,117920.0,117910.0,0.23651]
[1753899679669,0.74068012,117920.0,117910.0,0.23651]
[1753899679880,0.72371919,117920.0,117910.0,0.23651]
[1753899680032,0.34,117920.0,117910.0,0.23651]
[1753899680447,0.34847967,117920.0,117910.0,0.23651]
[1753899680650,0.35695949,117920.0,117910.0,0.23651]
[1753899680896,0.34847967,117920.0,117910.0,0.23651]
[1753899681098,0.35695949,117920.0,117910.0,0.23651]
[1753899681254,0.34847967,117920.0,117910.0,0.23651]
[1753899681456,0.34,117920.0,117910.0,0.260161]
[1753899681755,0.39093243,117930.0,117920.0,0.0652]
[1753899681954,0.39093243,117930.0,117920.0,0.10707]
[1753899682156,0.39941182,117930.0,117920.0,0.10707]
[1753899682378,0.77465105,117930.0,117920.0,0.10707]
[1753899682605,0.77597105,117930.0,117920.0,0.10707]
[1753899682801,0.48520912,117930.0,117920.0,0.10707]
[1753899682952,0.85196875,117930.0,117920.0,0.10707]
[1753899683152,0.81773193,117930.0,117920.0,0.10707]
[1753899683376,0.341,117930.0,117920.0,0.10707]
[1753899683801,0.34947903,117930.0,117920.0,0.10707]
[1753899683998,0.7247179,117930.0,117920.0,0.10707]
[1753899684231,0.91258895,117930.0,117920.0,0.10195]
[1753899684460,0.91258895,117930.0,117910.0,0.23289]
[1753899684461,0.00847996,117920.0,117910.0,0.23289]
[1753899684684,0.38503934,117920.0,117910.0,0.23489]
[1753899684892,0.36807963,117920.0,117910.0,0.23801]
[1753899685098,0.90278977,117930.0,117920.0,0.0635]
[1753899685306,1.04578916,117930.0,117920.0,0.10025]
[1753899685519,1.13026646,117930.0,117920.0,0.10025]
[1753899685986,1.12926646,117930.0,117920.0,0.10025]
[1753899686198,1.12078736,117930.0,117920.0,0.10025]
[1753899686657,1.11230805,117930.0,117920.0,0.10025]
[1753899687082,1.11330805,117930.0,117920.0,0.10025]
[1753899687291,1.13880505,117930.0,117920.0,0.10025]
[1753899687974,1.13880505,117930.0,117920.0,0.0635]
[1753899688661,1.13880505,117930.0,117920.0,0.10049]
[1753899690912,6.13880505,117930.0,117920.0,0.10049]
[1753899691133,0.19504682,117920.0,117910.0,0.19466]
[1753899691360,0.64720425,117920.0,117910.0,0.23165]
[1753899691577,0.7718845,117920.0,117910.0,0.10143]
[1753899691797,0.7973815,117920.0,117910.0,0.10344]
[1753899692223,0.62777492,117920.0,117910.0,0.10344]
[1753899692664,0.79738143,117920.0,117910.0,0.10344]
[1753899693107,0.62777492,117920.0,117910.0,0.10344]
[1753899693331,0.63625524,117920.0,117910.0,0.10344]
[1753899693575,0.78890176,117920.0,117910.0,0.10344]
[1753899694294,0.61929525,117920.0,117910.0,0.10344]
[1753899694499,0.17693685,117920.0,117910.0,0.10344]
[1753899694697,0.03397682,117920.0,117910.0,0.10344]
[1753899694930,0.03397675,117920.0,117910.0,0.10344]
[1753899695143,0.025497,117920.0,117910.0,0.10344]
[1753899695371,0.13312,117940.0,117930.0,0.0653]
[1753899695567,0.03938198,117940.0,117930.0,0.24036]
[1753899695774,0.00595245,117940.0,117930.0,0.24036]
[1753899695988,0.37686807,117950.0,117940.0,0.0653]
[1753899696192,0.37686807,117950.0,117940.0,0.10724]
[1753899696193,0.09212225,117950.0,117940.0,0.10724]
[1753899696400,0.79888188,117950.0,117940.0,0.10724]
[1753899696820,1.06140057,117950.0,117940.0,0.10524]
[1753899697026,1.06987873,117950.0,117940.0,0.10424]
[1753899697236,0.88335918,117950.0,117940.0,0.10424]
[1753899697450,0.80188181,117950.0,117940.0,0.10424]
[1753899697658,0.80296411,117950.0,117940.0,0.10424]
[1753899698085,0.96536989,117950.0,117940.0,0.10424]
[1753899698297,0.97384805,117950.0,117940.0,0.10424]
[1753899698513,0.97584799,117950.0,117940.0,0.10223]
[1753899699369,0.98324332,117950.0,117940.0,0.10223]
[1753899699754,0.96737019,117950.0,117940.0,0.10223]
[1753899699969,1.05184749,117950.0,117940.0,0.10223]
[1753899700193,1.04336905,117950.0,117940.0,0.10223]
[1753899702008,1.04336889,117950.0,117940.0,0.10223]
[1753899702702,1.04336889,117950.0,117940.0,0.09929]
[1753899702927,0.51805663,117940.0,117930.0,0.23611]
[1753899703148,0.96173431,117940.0,117930.0,0.23611]
[1753899703615,0.35695856,117930.0,117920.0,0.19962]
[1753899703831,0.72371811,117930.0,117920.0,0.20163]
[1753899704045,0.73219764,117930.0,117920.0,0.20163]
[1753899704231,0.73219764,117930.0,117920.0,0.23862]
[1753899704447,0.81667487,117930.0,117920.0,0.23862]
[1753899704657,0.986267,117930.0,117920.0,0.23862]
[1753899705775,1.011761,117930.0,117920.0,0.23862]
[1753899706749,0.36543794,117930.0,117920.0,0.23862]
[1753899706965,0.72371775,117930.0,117920.0,0.23862]
[1753899707178,0.74067645,117930.0,117920.0,0.23862]
[1753899708321,0.73219699,117930.0,117920.0,0.23862]
[1753899708543,0.74067638,117930.0,117920.0,0.23862]
[1753899709186,0.74915591,117930.0,117920.0,0.23862]
[1753899709421,0.99474639,117930.0,117920.0,0.23862]
[1753899710818,0.82515426,117930.0,117920.0,0.23862]
[1753899711239,0.72371804,117930.0,117920.0,0.23862]
[1753899711661,0.73219735,117930.0,117920.0,0.23862]
[1753899711889,0.72371775,117930.0,117920.0,0.23862]
[1753899712112,0.73219706,117930.0,117920.0,0.23862]
[1753899712334,0.72371775,117930.0,117920.0,0.23862]
[1753899712546,0.73219706,117930.0,117920.0,0.23862]
[1753899712982,0.72371775,117930.0,117920.0,0.23862]
[1753899713211,0.73219706,117930.0,117920.0,0.23862]
[1753899714319,0.71523858,117930.0,117920.0,0.23862]
[1753899714551,0.34,117930.0,117920.0,0.3230973]
[1753899716127,0.34,117930.0,117920.0,0.3209673]
[1753899716128,0.9031097,117930.0,117920.0,0.3209673]
[1753899717985,0.8946306,117930.0,117920.0,0.10059]
[1753899718231,6.47882753,117930.0,117920.0,0.16416]
[1753899718517,0.52656672,117920.0,117910.0,0.23258]
[1753899718750,0.17810179,117910.0,117900.0,0.09962]
[1753899718976,0.53507948,117900.0,117890.0,0.10284]
[1753899719201,0.90315911,117900.0,117890.0,0.23258]
[1753899719425,0.97027605,117900.0,117890.0,0.23258]
[1753899719654,0.97875759,117900.0,117890.0,0.2358]
[1753899719878,0.97027626,117900.0,117890.0,0.09962]
[1753899720098,0.97032475,117900.0,117890.0,0.23258]
[1753899720327,0.42544787,117900.0,117890.0,0.23258]
[1753899720558,0.7335721,117900.0,117890.0,0.23795]
[1753899720779,0.74205379,117900.0,117890.0,0.23795]
[1753899721225,0.89472663,117900.0,117890.0,0.23358]
[1753899721445,0.88624509,117900.0,117890.0,0.23358]
[1753899721936,0.88624509,117900.0,117890.0,0.23458]
[1753899722152,0.97072239,117900.0,117890.0,0.23458]
[1753899722372,0.97072239,117900.0,117890.0,0.23258]
[1753899723430,0.80956858,117900.0,117890.0,0.23258]
[1753899723627,0.80956858,117900.0,117890.0,0.2358]
[1753899723838,0.80956858,117900.0,117890.0,0.23795]
[1753899724054,0.80956808,117900.0,117890.0,0.23795]
[1753899724311,0.82658668,117900.0,117890.0,0.23795]
[1753899724731,0.84354955,117900.0,117890.0,0.23795]
[1753899725572,0.51203117,117900.0,117890.0,0.23795]
[1753899725830,0.66470408,117900.0,117890.0,0.09962]
[1753899726075,0.18661427,117890.0,117880.0,0.23134]
[1753899726284,0.63029195,117890.0,117880.0,0.09842]
[1753899726775,0.75472976,117890.0,117880.0,0.09842]
[1753899727234,0.18663024,117880.0,117870.0,0.23456]
[1753899727463,0.55470987,117880.0,117870.0,0.23456]
[1753899727694,5.9214695,117880.0,117870.0,0.0616]
[1753899727917,5.9214695,117880.0,117860.0,0.10134]
[1753899727918,0.01696676,117870.0,117860.0,0.10134]
[1753899728141,0.57169246,117870.0,117860.0,0.23426]
[1753899728368,0.57169246,117870.0,117860.0,0.09812]
[1753899728369,0.56320919,117870.0,117860.0,0.09812]
[1753899728613,0.6876457,117870.0,117860.0,0.06752]
[1753899728839,0.6876457,117870.0,117860.0,0.09772]
[1753899729060,0.75476005,117870.0,117860.0,0.09772]
[1753899729545,0.18540871,117870.0,117860.0,0.09772]
[1753899729774,0.56913539,117870.0,117860.0,0.10094]
[1753899730191,0.56065154,117870.0,117860.0,0.10094]
[1753899730409,0.56913531,117870.0,117860.0,0.10309]
[1753899730654,0.56065154,117870.0,117860.0,0.10309]
[1753899730861,0.41076442,117870.0,117860.0,0.10309]
[1753899731118,0.41792791,117870.0,117860.0,0.10309]
[1753899731554,0.75792783,117870.0,117860.0,0.10309]
[1753899731761,0.76641139,117870.0,117860.0,0.10309]
[1753899732014,0.77489516,117870.0,117860.0,0.10309]
[1753899732230,0.78337908,117870.0,117860.0,0.10309]
[1753899732458,0.94457426,117870.0,117860.0,0.10309]
[1753899732674,0.76773189,117870.0,117860.0,0.10309]
[1753899732879,0.75924812,117870.0,117860.0,0.10309]
[1753899733085,0.75792812,117870.0,117860.0,0.10309]
[1753899733296,0.74944449,117870.0,117860.0,0.10309]
[1753899733512,0.37420152,117870.0,117860.0,0.10309]
[1753899733738,0.74944449,117870.0,117860.0,0.10309]
[1753899733945,0.77489538,117870.0,117860.0,0.10309]
[1753899734154,0.76641153,117870.0,117860.0,0.10309]
[1753899734577,0.37420152,117870.0,117860.0,0.10309]
[1753899734795,0.38268493,117870.0,117860.0,0.10309]
[1753899735004,0.37420152,117870.0,117860.0,0.10309]
[1753899735434,0.38268486,117870.0,117860.0,0.10309]
[1753899735864,0.39116827,117870.0,117860.0,0.10309]
[1753899736433,0.38268486,117870.0,117860.0,0.10309]
[1753899736631,0.39965198,117870.0,117860.0,0.10309]
[1753899736813,0.75792791,117870.0,117860.0,0.10309]
[1753899737379,0.37420152,117870.0,117860.0,0.10309]
[1753899737600,0.37420152,117870.0,117860.0,0.1875673]
[1753899737790,0.38268479,117870.0,117860.0,0.1875673]
[1753899737953,0.37420152,117870.0,117860.0,0.1875673]
[1753899738644,0.37420152,117870.0,117860.0,0.55432693]
[1753899738849,0.03420152,117870.0,117860.0,0.55432693]
[1753899739289,5.5,117880.0,117870.0,0.0645]
[1753899739512,5.0,117880.0,117870.0,0.2840073]
[1753899739712,5.0,117880.0,117870.0,0.2595473]
[1753899739713,0.34,117880.0,117870.0,0.2595473]
[1753899740346,0.34,117880.0,117870.0,0.3240473]
[1753899740761,0.37528945,117900.0,117870.0,0.2595473]
[1753899740965,5.0,117890.0,117880.0,0.10454]
[1753899741173,0.16272225,117900.0,117890.0,0.0623]
[1753899741386,0.02984225,117900.0,117890.0,0.19733]
[1753899741586,0.34004849,117900.0,117890.0,0.23737]
[1753899742455,0.50004849,117900.0,117890.0,0.23737]
[1753899742663,4.849e-05,117900.0,117890.0,0.3218473]
[1753899743081,0.01833107,117900.0,117890.0,0.1889673]
[1753899743284,0.018331,117900.0,117890.0,0.23522]
[1753899743495,0.0098496,117900.0,117890.0,0.23522]
[1753899743696,0.00136849,117900.0,117890.0,0.24037]
[1753899743898,0.00852967,117900.0,117890.0,0.24037]
[1753899744104,0.00852967,117900.0,117890.0,0.23737]
[1753899744312,0.03792759,117900.0,117890.0,0.23737]
[1753899744515,4.849e-05,117900.0,117890.0,0.23837]
[1753899744949,0.00852975,117900.0,117890.0,0.23837]
[1753899745362,0.10997007,117900.0,117890.0,0.23837]
[1753899745540,0.48653146,117900.0,117890.0,0.23296]
[1753899745713,0.46956808,117900.0,117890.0,0.23296]
[1753899745918,0.00136849,117900.0,117890.0,0.23296]
[1753899746121,4.849e-05,117900.0,117890.0,0.23816]
[1753899747233,0.0085296,117900.0,117890.0,0.23816]
[1753899747388,0.03808786,117900.0,117890.0,0.23816]
[1753899748428,0.02960675,117900.0,117890.0,0.23816]
[1753899748641,0.04656912,117900.0,117890.0,0.23816]
[1753899749048,0.04656904,117900.0,117890.0,0.23816]
[1753899749720,0.06353206,117900.0,117890.0,0.23816]
[1753899749936,0.05505044,117900.0,117890.0,0.23816]
[1753899750140,0.06353191,117900.0,117890.0,0.23816]
[1753899750350,0.0720136,117900.0,117890.0,0.23816]
[1753899750558,0.06353191,117900.0,117890.0,0.23816]
[1753899750757,0.07201353,117900.0,117890.0,0.23816]
[1753899751168,0.24164946,117900.0,117890.0,0.23816]
[1753899751375,0.06353242,117900.0,117890.0,0.23816]
[1753899751998,0.0550508,117900.0,117890.0,0.23816]
[1753899752234,0.06353242,117900.0,117890.0,0.23816]
[1753899752650,0.05251629,117900.0,117890.0,0.23816]
[1753899753080,0.03555378,117900.0,117890.0,0.23816]
[1753899753300,0.03555378,117900.0,117890.0,0.68939693]
[1753899753301,4.849e-05,117900.0,117890.0,0.68939693]